fUSD/lending_fUSD_20260224
["ID","MTS","AMOUNT","RATE_DAILY","PERIOD"]
[406556505,1771941039258,-500.0,0.00013101,2]
[406556506,1771941039267,-500.0,0.00013101,2]
[406556507,1771941039277,-500.0,0.00013101,2]
[406556508,1771941039286,-500.0,0.00013101,2]
[406556509,1771941039296,-500.0,0.00013101,2]
[406556510,1771941039307,-307.5,0.00013139,2]
[406556511,1771941039317,-166.66,0.00013416,2]
[406556512,1771941039328,-3000.0,0.00013612,2]
[406556513,1771941039337,-1000.0,0.00013621,2]
[406556514,1771941039347,-500.0,0.00013698,2]
[406556515,1771941039357,-500.0,0.00013698,2]
[406556516,1771941039367,-500.0,0.00013698,2]
[406556517,1771941039378,-500.0,0.00013698,2]
[406556518,1771941039388,-500.0,0.00013698,2]
[406556519,1771941039398,-500.0,0.00013698,2]
[406556520,1771941039408,-500.0,0.00013698,2]
[406556521,1771941039418,-500.0,0.00013698,2]
[406556522,1771941039427,-500.0,0.00013698,2]
[406556523,1771941039437,-500.0,0.00013698,2]
[406556524,1771941039447,-500.0,0.00013698,2]
[406556525,1771941039457,-500.0,0.00013698,2]
[406556526,1771941039467,-514.97195478,0.00013698,2]
[406556527,1771941039692,-500.0,0.00013698,2]
[406556528,1771941039713,-500.0,0.00013698,2]
[406556529,1771941039723,-500.0,0.00013698,2]
[406556530,1771941039733,-500.0,0.00013698,2]
[406556531,1771941039742,-500.0,0.00013698,2]
[406556532,1771941039752,-500.0,0.00013698,2]
[406556533,1771941039761,-500.0,0.00013698,2]
[406556534,1771941039771,-500.0,0.00013698,2]
[406556535,1771941039781,-500.0,0.00013698,2]
[406556536,1771941039790,-500.0,0.00013698,2]
[406556537,1771941039800,-500.0,0.00013698,2]
[406556538,1771941039810,-500.0,0.00013698,2]
[406556539,1771941039819,-500.0,0.00013698,2]
[406556540,1771941039829,-500.0,0.00013698,2]
[406556541,1771941039840,-500.0,0.00013698,2]
[406556542,1771941039849,-500.0,0.00013698,2]
[406556543,1771941039860,-500.0,0.00013698,2]
[406556544,1771941039870,-500.0,0.00013698,2]
[406556545,1771941039880,-500.0,0.00013698,2]
[406556546,1771941039890,-500.0,0.00013698,2]
[406556547,1771941039900,-500.0,0.00013698,2]
[406556548,1771941039910,-500.0,0.00013698,2]
[406556549,1771941039920,-500.0,0.00013698,2]
[406556550,1771941039929,-500.0,0.00013698,2]
[406556551,1771941039939,-500.0,0.00013698,2]
[406556552,1771941039948,-500.0,0.00013698,2]
[406556553,1771941039958,-500.0,0.00013698,2]
[406556554,1771941039968,-397.37459131,0.00013698,2]
[406556555,1771941039978,-500.0,0.00013698,2]
[406556556,1771941039987,-500.0,0.00013698,2]
[406556557,1771941039996,-500.0,0.00013698,2]
[406556558,1771941040006,-500.0,0.00013698,2]
[406556559,1771941040016,-500.0,0.00013698,2]
[406556560,1771941040025,-500.0,0.00013698,2]
[406556561,1771941040036,-500.0,0.00013698,2]
[406556562,1771941040046,-500.0,0.00013698,2]
[406556563,1771941040056,-500.0,0.00013698,2]
[406556564,1771941040065,-500.0,0.00013698,2]
[406556565,1771941040074,-500.0,0.00013698,2]
[406556566,1771941040084,-500.0,0.00013698,2]
[406556567,1771941040093,-500.0,0.00013698,2]
[406556568,1771941040102,-500.0,0.00013698,2]
[406556569,1771941040111,-500.0,0.00013698,2]
[406556570,1771941040122,-500.0,0.00013698,2]
[406556571,1771941040131,-500.0,0.00013698,2]
[406556572,1771941040141,-500.0,0.00013698,2]
[406556573,1771941040150,-500.0,0.00013698,2]
[406556574,1771941040159,-500.0,0.00013698,2]
[406556575,1771941040168,-233.40706108,0.00013698,2]
[406556576,1771941040178,-500.0,0.00013698,2]
[406556577,1771941040187,-500.0,0.00013698,2]
[406556578,1771941040196,-500.0,0.00013698,2]
[406556579,1771941040205,-506.35812357,0.00013698,2]
[406556581,1771941040214,-500.0,0.00013698,2]
[406556582,1771941040223,-620.42088911,0.00013698,2]
[406556583,1771941040232,-500.0,0.00013698,2]
[406556584,1771941040241,-500.0,0.00013698,2]
[406556585,1771941040250,-316.14,0.00013698,2]
[406556586,1771941040259,-500.0,0.00013698,2]
[406556587,1771941040269,-500.0,0.00013698,2]
[406556588,1771941040278,-500.0,0.00013698,2]
[406556589,1771941040288,-500.0,0.00013698,2]
[406556590,1771941040297,-500.0,0.00013698,2]
[406556591,1771941040307,-500.0,0.00013698,2]
[406556592,1771941040316,-510.28250517,0.00013698,2]
[406556593,1771941040326,-500.0,0.00013698,2]
[406556594,1771941040335,-500.0,0.00013698,2]
[406556595,1771941040345,-500.0,0.00013698,2]
[406556596,1771941040355,-500.0,0.00013698,2]
[406556597,1771941040364,-500.0,0.00013698,2]
[406556598,1771941040374,-500.0,0.00013698,2]
[406556599,1771941040384,-500.0,0.00013698,2]
[406556600,1771941040393,-500.0,0.00013698,2]
[406556601,1771941040402,-500.0,0.00013698,2]
[406556602,1771941040411,-500.0,0.00013698,2]
[406556603,1771941040422,-185.97265749,0.00013698,2]
[406556604,1771941040431,-500.0,0.00013698,2]
[406556605,1771941040441,-500.0,0.00013698,2]
[406556606,1771941040453,-500.0,0.00013698,2]
[406556607,1771941040463,-500.0,0.00013698,2]
[406556608,1771941040472,-500.0,0.00013698,2]
[406556609,1771941040481,-500.0,0.00013698,2]
[406556610,1771941040490,-500.0,0.00013698,2]
[406556611,1771941040500,-500.0,0.00013698,2]
[406556612,1771941040509,-500.0,0.00013698,2]
[406556613,1771941040518,-500.0,0.00013698,2]
[406556614,1771941040527,-500.0,0.00013698,2]
[406556615,1771941040536,-500.0,0.00013698,2]
[406556616,1771941040545,-500.0,0.00013698,2]
[406556617,1771941040556,-500.0,0.00013698,2]
[406556618,1771941040566,-212.54133744,0.00013698,2]
[406556619,1771941040575,-500.0,0.00013698,2]
[406556620,1771941040584,-500.0,0.00013698,2]
[406556621,1771941040597,-500.0,0.00013698,2]
[406556622,1771941040607,-500.0,0.00013698,2]
[406556623,1771941040617,-500.0,0.00013698,2]
[406556624,1771941040626,-500.0,0.00013698,2]
[406556625,1771941040639,-339.10383034,0.00013698,2]
[406556626,1771941040648,-500.0,0.00013698,2]
[406556627,1771941040659,-500.0,0.00013698,2]
[406556628,1771941040670,-500.0,0.00013698,2]
[406556629,1771941040680,-500.0,0.00013698,2]
[406556630,1771941040690,-1423.69,0.00013698,2]
[406556631,1771941040699,-1423.69,0.00013698,2]
[406556632,1771941040709,-500.0,0.00013698,2]
[406556633,1771941040718,-500.0,0.00013698,2]
[406556634,1771941040727,-512.1,0.00013698,2]
[406556635,1771941040737,-512.1,0.00013698,2]
[406556636,1771941040746,-691.28,0.00013698,2]
[406556637,1771941040756,-691.28,0.00013698,2]
[406556638,1771941040765,-500.0,0.00013698,2]
[406556639,1771941040774,-500.0,0.00013698,2]
[406556640,1771941040783,-177.32,0.00013699,2]
[406556641,1771941040793,-16296.14,0.00013699,2]
[406556642,1771941040803,-500.0,0.00013699,2]
[406556643,1771941040813,-302.70589394,0.00013699,2]
[406556644,1771941040822,-169.4350314,0.00013699,2]
[406556645,1771941040831,-500.0,0.00013699,2]
[406556646,1771941040840,-504.28462668,0.00013699,2]
[406556647,1771941040851,-500.0,0.00013699,2]
[406556648,1771941040863,-503.3459029,0.00013699,2]
[406556649,1771941040872,-304.38005979,0.00013699,2]
[406556650,1771941040882,-500.0,0.00013699,2]
[406556651,1771941040892,-162.13031906,0.00013699,2]
[406556652,1771941040902,-511.18624479,0.00013699,2]
[406556653,1771941040911,-503.99220136,0.00013699,2]
[406556654,1771941040921,-504.16390705,0.00013699,2]
[406556655,1771941040931,-500.0,0.00013699,2]
[406556656,1771941040942,-500.0,0.00013699,2]
[406556657,1771941040952,-500.0,0.00013699,2]
[406556658,1771941040961,-168.61283304,0.00013699,2]
[406556659,1771941040971,-500.0,0.00013699,2]
[406556660,1771941040981,-209.6165406,0.00013699,2]
[406556661,1771941040991,-500.0,0.00013699,2]
[406556662,1771941041001,-501.93759306,0.00013699,2]
[406556663,1771941041011,-500.0,0.00013699,2]
[406556664,1771941041020,-487.94127816,0.00013699,2]
[406556665,1771941041030,-503.60394883,0.00013699,2]
[406556666,1771941041039,-500.0,0.00013699,2]
[406556667,1771941041049,-500.0,0.00013699,2]
[406556668,1771941041059,-500.0,0.00013699,2]
[406556669,1771941041068,-500.0,0.00013699,2]
[406556670,1771941041078,-501.44667058,0.00013699,2]
[406556671,1771941041087,-599.206441,0.00013699,2]
[406556672,1771941041097,-186.88471708,0.00013699,2]
[406556673,1771941041106,-170.38160206,0.00013699,2]
[406556674,1771941041115,-500.0,0.00013699,2]
[406556675,1771941041125,-150.0,0.000137,2]
[406556676,1771941041134,-150.0,0.000137,2]
[406556677,1771941041144,-150.0,0.000137,2]
[406556678,1771941041153,-215.42973367,0.000137,2]
[406556679,1771941041162,-200.0,0.00013732,2]
[406556680,1771941041172,-166.66,0.00013832,2]
[406556681,1771941041182,-1500.0,0.00013854,2]
[406556682,1771941041191,-4234.36,0.00013928,2]
[406556683,1771941041200,-316.14,0.00013972,2]
[406556684,1771941041209,-500.0,0.0001416,2]
[406556685,1771941041219,-500.0,0.0001416,2]
[406556686,1771941041228,-500.0,0.0001416,2]
[406556687,1771941041237,-500.0,0.0001416,2]
[406556688,1771941041246,-2620.70979822,0.0001416,2]
[406556689,1771941041255,-871.93707751,0.00014168,2]
[406556690,1771941041264,-982.12,0.00014202,2]
[406556691,1771941041274,-736.0,0.00014223,2]
[406556692,1771941041282,-3292.0,0.00014241,2]
[406556693,1771941041291,-316.14,0.00014246,2]
[406556694,1771941041300,-500.0,0.00014247,2]
[406556695,1771941041309,-1000.0,0.00014247,2]
[406556696,1771941041318,-1028.84101903,0.00014247,2]
[406556697,1771941041327,-1000.0,0.00014247,2]
[406556698,1771941041336,-1092.86766843,0.00014247,2]
[406556699,1771941041346,-436.95947364,0.00014247,2]
[406556700,1771941041356,-583.60061699,0.00014247,2]
[406556701,1771941041365,-1000.0,0.00014247,2]
[406556702,1771941041376,-1000.0,0.00014247,2]
[406556703,1771941041385,-1000.0,0.00014247,2]
[406556704,1771941041394,-502.25935248,0.00014247,2]
[406556705,1771941041403,-1000.0,0.00014247,2]
[406556706,1771941041412,-1000.0,0.00014247,2]
[406556707,1771941041421,-1000.0,0.00014247,2]
[406556708,1771941041430,-243.69912151,0.00014247,2]
[406556709,1771941041440,-166.66,0.00014247,2]
[406556710,1771941041449,-482.62263511,0.00014508,2]
[406556711,1771941041458,-151.0,0.00014634,2]
[406556712,1771941041467,-151.0,0.00014634,2]
[406556713,1771941041477,-151.0,0.00014634,2]
[406556714,1771941041486,-151.0,0.00014634,2]
[406556715,1771941041495,-166.66,0.00014663,2]
[406556716,1771941041504,-1500.0,0.00014795,2]
[406556717,1771941041513,-602.53164684,0.00014795,2]
[406556718,1771941041522,-1500.0,0.00014795,2]
[406556719,1771941041532,-693.71551848,0.00014795,2]
[406556720,1771941041541,-1500.0,0.00014795,2]
[406556721,1771941041550,-1500.0,0.00014795,2]
[406556722,1771941041559,-1390.05507377,0.00014795,2]
[406556723,1771941041569,-1500.0,0.00014795,2]
[406556724,1771941041579,-482.62263511,0.00014871,2]
[406556725,1771941041592,-500.0,0.00014876,4]
[406556726,1771941041601,-160.0,0.00015041,2]
[406556727,1771941041610,-173.87087054,0.00015041,2]
[406556728,1771941041620,-500.0,0.00015101,2]
[406556729,1771941041631,-500.0,0.00015119,2]
[406556730,1771941041640,-500.0,0.00015119,2]
[406556731,1771941041650,-500.0,0.00015119,2]
[406556732,1771941041659,-500.0,0.00015119,2]
[406556733,1771941041671,-482.62263511,0.00015234,2]
[406556734,1771941041683,-503.05357398,0.00015342,2]
[406556735,1771941041693,-932.65135931,0.00015342,2]
[406556736,1771941041703,-2000.0,0.00015342,2]
[406556737,1771941041712,-1255.82806005,0.00015342,2]
[406556738,1771941041722,-474.12,0.00015579,2]
[406556739,1771941041732,-1252.0,0.00015583,2]
[406556740,1771941041741,-482.62263511,0.00015596,2]
[406556741,1771941041751,-982.12,0.00015623,2]
[406556742,1771941041760,-4609.0,0.00015665,2]
[406556743,1771941041769,-2301.867141,0.0001567,7]
[406556744,1771941041778,-474.12,0.00015853,2]
[406556745,1771941041788,-1200.21212036,0.0001589,2]
[406556746,1771941041797,-16795.22870477,0.00015892,2]
[406556747,1771941041807,-461.85,0.00015903,2]
[406556748,1771941041816,-482.62263511,0.00015959,2]
[406556749,1771941041825,-380.32235674,0.00016,2]
[406556750,1771941041834,-5567.09001931,0.00016025,2]
[406556751,1771941041845,-461.85,0.00016062,2]
[406556752,1771941041855,-2725.04997657,0.00016092,2]
[406556753,1771941041864,-380.32235674,0.000161,2]
[406556754,1771941041873,-607.84,0.00016127,2]
[406556755,1771941041882,-391.17971065,0.00016199,2]
[406556756,1771941041892,-500.0,0.00016199,2]
[406556757,1771941041902,-500.0,0.00016199,2]
[406556758,1771941041912,-366.29544103,0.00016199,2]
[406556759,1771941041923,-380.32235674,0.000162,2]
[406556760,1771941041932,-461.85,0.00016221,2]
[406556761,1771941041942,-454.1749961,0.00016236,2]
[406556762,1771941041952,-482.62263511,0.00016322,2]
[406556763,1771941041962,-461.85,0.0001638,2]
[406556764,1771941041972,-454.1749961,0.00016397,2]
[406556765,1771941041981,-150.73989367,0.00016438,2]
[406556766,1771941041991,-461.85,0.00016539,2]
[406556767,1771941042001,-454.1749961,0.00016558,2]
[406556768,1771941042011,-482.62263511,0.00016684,2]
[406556769,1771941042021,-461.89325126,0.00016698,2]
[406556770,1771941042031,-167.31,0.00016712,2]
[406556771,1771941042041,-500.0,0.00016999,2]
[406556772,1771941042050,-336.17986232,0.00016999,2]
[406556773,1771941042059,-982.12,0.00017043,2]
[406556774,1771941042069,-482.62263511,0.00017047,2]
[406556775,1771941042078,-2129.0,0.00017074,2]
[406556776,1771941042087,-4130.95524382,0.00017139,2]
[406556777,1771941042100,-6453.0,0.00017231,2]
[406556778,1771941042111,-500.0,0.00017409,2]
[406556779,1771941042120,-482.62263511,0.0001741,2]
[406556780,1771941042131,-1090.14879647,0.00017808,2]
[406556781,1771941042140,-800.0,0.00017808,2]
[406556782,1771941042150,-365.1598508,0.00017921,2]
[406556783,1771941042159,-4117.784552,0.00017934,7]
[406556784,1771941042169,-500.0,0.00017999,2]
[406556785,1771941042178,-500.0,0.00017999,2]
[406556786,1771941042188,-534.96315196,0.00017999,2]
[406556787,1771941042198,-500.0,0.00018051,4]
[406556788,1771941042207,-1779.68,0.00018101,7]
[406556789,1771941042217,-200.0,0.00018128,2]
[406556790,1771941042227,-2327.0,0.00018715,2]
[406556791,1771941042236,-800.0,0.00018904,2]
[406556792,1771941042245,-9035.0,0.00018954,2]
[406556793,1771941042255,-16795.22870477,0.00019368,2]
[406556794,1771941042265,-500.0,0.0001951,5]
[406556795,1771941042274,-5567.09001931,0.00019635,2]
[406556796,1771941042284,-4263.61,0.00019675,2]
[406556797,1771941042293,-397.95214028,0.00020688,2]
[406556798,1771941042302,-1126.0,0.0002085,2]
[406556799,1771941042311,-3580.682219,0.00020893,7]
[406556800,1771941042321,-159.62910539,0.00020899,2]
[406556801,1771941042330,-500.0,0.00021001,7]
[406556802,1771941042340,-1052.0,0.00021083,2]
[406556803,1771941042350,-1052.0,0.00021136,2]
[406556804,1771941042359,-1052.0,0.00021173,2]
[406556805,1771941042369,-1052.0,0.00021196,2]
[406556806,1771941042378,-1052.0,0.00021216,2]
[406556807,1771941042388,-1052.0,0.00021228,2]
[406556808,1771941042398,-1052.0,0.00021347,2]
[406556809,1771941042407,-1052.0,0.00021356,2]
[406556810,1771941042417,-349.96916897,0.00021609,2]
[406556811,1771941042427,-1052.0,0.00021771,2]
[406556812,1771941042436,-4130.95524382,0.00021862,2]
[406556813,1771941042444,-5000.0,0.00021918,2]
[406556814,1771941042454,-1052.0,0.00021926,2]
[406556815,1771941042464,-307.51644871,0.00022,120]
[406556816,1771941042474,-15438.5,0.00022,2]
[406556817,1771941042493,-1052.0,0.00022129,2]
[406556818,1771941042505,-1052.0,0.00022333,2]
[406556819,1771941042514,-1052.0,0.00022431,2]
[406556820,1771941042524,-1052.0,0.00022451,2]
[406556821,1771941042534,-1052.0,0.00022527,2]
[406556822,1771941042544,-1052.0,0.00022591,2]
[406556823,1771941042553,-1052.0,0.00022619,2]
[406556824,1771941042564,-1052.0,0.0002269,2]
[406556825,1771941042574,-1052.0,0.000227,2]
[406556826,1771941042583,-1052.0,0.00022796,2]
[406556827,1771941042598,-16795.22870477,0.00022844,2]
[406556828,1771941042609,-1052.0,0.00022884,2]
[406556829,1771941042618,-1052.0,0.00022889,2]
[406556830,1771941042628,-1052.0,0.00022953,2]
[406556831,1771941042640,-200.0,0.00023008,7]
[406556832,1771941042650,-487.0,0.00023008,2]
[406556833,1771941042659,-487.0,0.00023008,2]
[406556834,1771941042669,-487.0,0.00023008,2]
[406556835,1771941042680,-487.0,0.00023008,2]
[406556836,1771941042691,-487.0,0.00023008,2]
[406556837,1771941042700,-487.0,0.00023008,2]
[406556838,1771941042710,-487.0,0.00023008,2]
[406556839,1771941042719,-487.0,0.00023008,2]
[406556840,1771941042728,-487.0,0.00023008,2]
[406556841,1771941042738,-487.0,0.00023008,2]
[406556842,1771941042748,-487.0,0.00023008,2]
[406556843,1771941042758,-789.99,0.00023008,2]
[406556844,1771941042768,-1052.0,0.00023019,2]
[406556845,1771941042778,-356.18,0.0002305,2]
[406556846,1771941042787,-1052.0,0.00023182,2]
[406556847,1771941042797,-5567.09001931,0.00023244,2]
[406556848,1771941042809,-307.5,0.00023285,2]
[406556849,1771941042819,-500.0,0.00023423,9]
[406556850,1771941042829,-365.1598508,0.00023425,2]
[406556851,1771941042839,-1000.0,0.00023781,2]
[406556852,1771941042849,-9608.163954,0.00023912,30]
[406556853,1771941042859,-500.0,0.00023951,9]
[406556855,1771941042869,-454.1749961,0.00024113,2]
[406556857,1771941042878,-12275.37,0.0002418,2]
[406556859,1771941042888,-15438.5,0.000242,2]
[406556861,1771941042898,-184.36344894,0.00024567,12]
[406556863,1771941042907,-150.0,0.00024658,2]
[406556864,1771941042918,-218.72689799,0.00025464,14]
[406556865,1771941042928,-150.0,0.0002589,2]
[406556866,1771941042938,-5788.0,0.00025986,2]
[406556867,1771941042948,-16795.22870477,0.0002632,2]
[406556868,1771941042959,-200.0,0.00026351,12]
[406556869,1771941042969,-500.0,0.00026445,14]
[406556870,1771941042979,-4130.95524382,0.00026585,2]
[406556871,1771941042990,-1000.0,0.00026754,2]
[406556872,1771941043000,-5567.09001931,0.00026853,2]
[406556873,1771941043011,-500.0,0.00026901,12]
[406556874,1771941043021,-150.0,0.00027185,2]
[406556875,1771941043032,-235.90862237,0.00027258,17]
[406556876,1771941043042,-164.84641836,0.0002785,17]
[406556878,1771941043056,-150.0,0.00027987,10]
[406556880,1771941043066,-158.38200706,0.00027987,10]
[406556882,1771941043076,-15438.5,0.00028,2]
[406556883,1771941043086,-3033.38892459,0.00028063,2]
[406556884,1771941043096,-500.0,0.00028098,18]
[406556885,1771941043106,-150.0,0.00028544,2]
[406556886,1771941043117,-500.0,0.00028892,2]
[406556887,1771941043127,-365.1598508,0.0002893,2]
[406556888,1771941043138,-271.35929694,0.00028934,2]
[406556889,1771941043147,-921.39258684,0.00028947,2]
[406556890,1771941043158,-8282.43150572,0.00028947,2]
[406556891,1771941043168,-2000.0,0.00029,2]
[406556892,1771941043178,-199.48806131,0.00029614,20]
[406556893,1771941043188,-200.0,0.00029695,21]
[406556894,1771941043198,-1000.0,0.00029727,2]
[406556895,1771941043208,-500.0,0.0002975,22]
[406556897,1771941043219,-16795.22870477,0.00029796,2]
[406556899,1771941043229,-500.0,0.00029851,15]
[406556900,1771941043239,-307.5,0.00029858,2]
[406556901,1771941043248,-150.0,0.00029971,2]
[406556902,1771941043258,-412.8,0.000303,30]
[406556903,1771941043268,-5567.09001931,0.00030463,2]
[406556904,1771941043278,-210.68799085,0.00030496,22]
[406556905,1771941043288,-159.17573401,0.00030656,22]
[406556906,1771941043298,-287.45379579,0.00030845,22]
[406556907,1771941043309,-4130.95524382,0.00031309,2]
[406556908,1771941043319,-159.62910539,0.00031349,2]
[406556910,1771941043329,-214.07401609,0.00031378,23]
[406556912,1771941043339,-150.0,0.0003147,2]
[406556914,1771941043348,-15438.5,0.000315,2]
[406556916,1771941043357,-167.15607918,0.00032,120]
[406556918,1771941043367,-184.7789246,0.00032,120]
[406556920,1771941043377,-164.01584354,0.00032,120]
[406556922,1771941043388,-1237.69,0.00032,120]
[406556924,1771941043398,-1000.0,0.00032699,2]
[406556925,1771941043408,-2000.0,0.000327,2]
[406556928,1771941043418,-500.0,0.00032772,34]
[406556930,1771941043429,-500.0,0.00032801,17]
[406556932,1771941043439,-248.16,0.000329,14]
[406556934,1771941043449,-721.04,0.000329,2]
[406556936,1771941043459,-388.58,0.000329,14]
[406556938,1771941043469,-160.83,0.000329,14]
[406556940,1771941043480,-500.0,0.00032999,120]
[406556942,1771941043489,-500.0,0.00032999,120]
[406556944,1771941043499,-500.0,0.00032999,2]
[406556946,1771941043511,-500.0,0.00032999,120]
[406556948,1771941043521,-500.0,0.00032999,120]
[406556950,1771941043531,-1423.69,0.00032999,120]
[406556952,1771941043541,-500.0,0.00032999,120]
[406556954,1771941043551,-512.1,0.00032999,120]
[406556956,1771941043561,-691.28,0.00032999,120]
[406556958,1771941043571,-500.0,0.00032999,120]
[406556960,1771941043580,-200000.0,0.00033,30]
[406556962,1771941043593,-167.15607918,0.00033,120]
[406556964,1771941043603,-164.01584354,0.00033,120]
[406556966,1771941043613,-168.86,0.00033038,35]
[406556968,1771941043623,-150.0,0.00033043,2]
[406556970,1771941043635,-246.75,0.00033104,2]
[406556972,1771941043645,-152.0,0.00033234,3]
[406556974,1771941043656,-16795.22870477,0.00033272,2]
[406556976,1771941043668,-167.15607918,0.000339,120]
[406556978,1771941043679,-164.01584354,0.000339,120]
[406556980,1771941043690,-5567.09001931,0.00034072,2]
[406556982,1771941043700,-465.0,0.00034209,30]
[406556984,1771941043710,-365.1598508,0.00034434,2]
[406556986,1771941043720,-150.0,0.00034696,2]
[406556988,1771941043731,-1500.0,0.00034795,2]
[406556989,1771941043741,-388.58,0.000348,14]
[406556990,1771941043751,-160.83,0.000348,14]
[406556991,1771941043762,-167.15607918,0.00035,120]
[406556992,1771941043772,-164.01584354,0.00035,120]
[406556993,1771941043782,-1000.0,0.00035672,2]
[406556994,1771941043792,-721.04,0.000357,2]
[406556997,1771941044023,-500.0,0.00035751,20]
[406556998,1771941044034,-248.16,0.000358,14]
[406557000,1771941044045,-4130.95524382,0.00036032,2]
[406557001,1771941044055,-150.0,0.00036038,2]
[406557002,1771941044065,-150.0,0.00036039,2]
[406557004,1771941044075,-150.0,0.0003604,2]
[406557006,1771941044084,-150.0,0.00036041,2]
[406557008,1771941044094,-150.0,0.00036042,2]
[406557010,1771941044104,-150.0,0.00036043,2]
[406557012,1771941044114,-150.0,0.00036044,2]
[406557014,1771941044124,-150.0,0.00036045,2]
[406557016,1771941044133,-150.0,0.00036046,2]
[406557018,1771941044143,-150.0,0.00036047,2]
[406557020,1771941044152,-150.0,0.00036048,2]
[406557022,1771941044162,-150.0,0.00036049,2]
[406557023,1771941044172,-206.290511,0.0003605,2]
[406557024,1771941044182,-2000.0,0.000364,2]
[406557025,1771941044193,-1040.0,0.00036412,2]
[406557026,1771941044203,-618.0,0.00036412,2]
[406557027,1771941044213,-3496.0,0.00036412,2]
[406557030,1771941044223,-1339.0,0.00036412,2]
[406557032,1771941044232,-150.597,0.00036412,2]
[406557034,1771941044243,-1277.0,0.00036412,2]
[406557036,1771941044253,-1218.319,0.00036412,2]
[406557038,1771941044263,-1032.444,0.00036412,2]
[406557040,1771941044273,-6064.671,0.00036412,2]
[406557043,1771941044283,-5405.0,0.00036412,2]
[406557045,1771941044292,-150.0,0.0003643,2]
[406557047,1771941044302,-3631.511,0.00036659,46]
[406557049,1771941044311,-304.094,0.00036659,46]
[406557051,1771941044320,-500.0,0.00036685,45]
[406557052,1771941044330,-16795.22870477,0.00036748,2]
[406557053,1771941044340,-183.0,0.00036884,120]
[406557054,1771941044349,-1208.0,0.00036884,120]
[406557055,1771941044358,-160.83,0.000369,14]
[406557056,1771941044368,-388.58,0.000372,14]
[406557057,1771941044377,-181.61613088,0.000372,120]
[406557058,1771941044387,-170.83,0.00037539,2]
[406557059,1771941044396,-152.0,0.00037551,4]
[406557060,1771941044407,-152.0,0.00037551,4]
[406557061,1771941044417,-5567.09001931,0.00037681,2]
[406557062,1771941044426,-150.0,0.00038252,2]
[406557063,1771941044436,-287.00379051,0.00038433,30]
[406557064,1771941044445,-721.04,0.000385,30]
[406557065,1771941044455,-170.83,0.00038649,2]
[406557066,1771941044466,-500.0,0.00038701,23]
[406557067,1771941044476,-3496.0,0.00039412,2]
[406557068,1771941044485,-1339.0,0.00039412,2]
[406557069,1771941044495,-1277.0,0.00039412,2]
[406557070,1771941044505,-1210.0,0.00039412,2]
[406557071,1771941044515,-920.0,0.00039412,2]
[406557072,1771941044524,-5405.0,0.00039412,2]
[406557073,1771941044534,-170.83,0.00039758,2]
[406557074,1771941044543,-160.83,0.000398,14]
[406557075,1771941044553,-365.1598508,0.00039939,2]
[406557076,1771941044563,-4599.96331883,0.0004,10]
[406557077,1771941044574,-154.0,0.0004,120]
[406557078,1771941044583,-397.1198573,0.0004,7]
[406557079,1771941044596,-2000.0,0.000401,2]
[406557080,1771941044605,-150.0,0.00040165,2]
[406557081,1771941044615,-6623.03809716,0.0004022,5]